Cogmind - Beta 15 @@@ ROGUE MODE // 2025.09.26 @ 19:14:16 Player: Figgis Result: Destroyed by GD-JBL(R) with Subdweller Laser Performance ------------- Evolutions (0) 0 Regions Visited (2) 400 Robots Destroyed (32) 160 Value Destroyed (950) 950 Prototype IDs (0) 0 Alien Tech Used (0) 0 Bonus (0) 0 TOTAL SCORE: 1510 Bonus ------- None Cogmind --------- Core Integrity 0/250 Matter 41/300 Energy 250/250 System Corruption 0% Temperature Cool (6) Movement Rolling (120) Ox1 Location -10/Subcaves Parts ------- > --- POWER (1) -------- Ion Engine > --- PROPULSION (2) --- Subdweller Monowheel > --- UTILITY (2) ------ Large Storage Unit Makeshift Hacking Suite > --- WEAPON (2) ------- Battle Rifle Battle Cannon > --- INVENTORY (15) --- SUBCON Basin (Full) Peak State ------------ > --- POWER ------------ Ion Engine > --- PROPULSION ------- Aluminum Leg Subdweller Monowheel > --- UTILITY ---------- Large Storage Unit Makeshift Hacking Suite > --- WEAPON ----------- Battle Rifle Battle Cannon > --- INVENTORY -------- SUBCON Basin [Rating: 31] Favorites ----------- Power Ion Engine Engine Ion Engine Propulsion Aluminum Leg Leg Aluminum Leg Wheel Subdweller Monowheel Utility Targeting Computer Storage Large Storage Unit Processor Targeting Computer Hackware Hacking Suite Weapon Battle Cannon Energy Gun Riot Gun Ballistic Gun Assault Rifle Ballistic Cannon Battle Cannon Build | -11 -10 -10 ------- Run | Yrd Mat Sub Slots Evolved . | . . . Power . | . . . Propulsion . | . . . Utility . | . . . Weapon . | . . . Parts Attached 22 | 3 7 12 Power 3 | . 2 1 Engine 3 | . 2 1 Core . | . . . Reactor . | . . . Propulsion 6 | 2 . 4 Treads . | . . . Leg 4 | 2 . 2 Wheel 2 | . . 2 Hover . | . . . Flight . | . . . Utility 5 | . 3 2 Device . | . . . Storage 2 | . 2 . Processor 1 | . 1 . Hackware 2 | . . 2 Protection . | . . . Artifact . | . . . Weapon 8 | 1 2 5 Energy Gun 2 | . . 2 Energy Cannon . | . . . Ballistic Gun 3 | 1 1 1 Ballistic Cannon 3 | . 1 2 Launcher . | . . . Special Weapon . | . . . Impact Weapon . | . . . Slashing Weapon . | . . . Piercing Weapon . | . . . Special Melee Weapon . | . . . Unidentified Prototypes . | . . . Parts Lost 8 | . 2 6 Power 1 | . 1 . Propulsion 4 | . . 4 Utility . | . . . Weapon 3 | . 1 2 Highest Loss Streak 2 | . 1 2 To Critical Strikes . | . . . Average Backups 8 | 3 6 9 Power 2 | 1 2 2 Propulsion 1 | . 1 . Utility 1 | . 1 1 Weapon 2 | 1 1 3 Tool/Special . | . . . Unused Backups 7 | . 2 5 Power 3 | . 1 2 Propulsion . | . . . Utility 1 | . . 1 Weapon 2 | . 1 1 Tool/Special 1 | . . 1 Average Slot Usage (%) 99 | . 98 99 Engine 13 | . 13 14 Leg 24 | . 28 22 Wheel 3 | . . 5 Storage 13 | . 13 14 Processor 13 | . 13 13 Energy Gun 2 | . . 4 Ballistic Gun 6 | . 19 . Ballistic Cannon 17 | . 8 22 Peak Build Rating 31 | 3 8 31 Average Rating 9 | 1 7 11 On Entrance 3 | . 3 8 Naked Turns . | . . . Heaviest Build 31 | 2 30 31 Greatest Support 20 | 3 20 20 Greatest Overweight (x) 10 | . 1 10 Average Overweight (x) 1 | . . 1 Largest Inventory Capacity 15 | 5 15 15 Average Capacity 14 | 5 12 15 Most Carried 15 | 5 8 15 Average Carried 9 | 3 6 10 Final Capacity 15 | 5 15 15 Final Carried 15 | 5 7 15 Class Distribution -------------------- 100% | Mutant Dominant Class ---------------- Mutant | -10/Materials Mutant | -10/Subcaves Resources | -11 -10 -10 ----------- Run | Yrd Mat Sub Matter Collected 1026 | 193 436 397 Remotely . | . . . Salvage Created 998 | . 609 389 Parts 67 | . 40 27 Haulers Intercepted 1 | . 1 . Recyclers Shooed . | . . . Parts Field Recycled . | . . . Retrieved Matter . | . . . Parts Self-Destructed 8 | . . 8 Prevented . | . . . Kills | -11 -10 -10 ------- Run | Yrd Mat Sub Combat Hostiles Destroyed 27 | . 14 13 Guns 14 | . 10 4 Cannons 13 | . 4 9 Classes Destroyed 6 | . 5 1 Hauler 1 | . 1 . Operator 1 | . 1 . Watcher 3 | . 3 . Swarmer 5 | . 2 3 Grunt 12 | . 12 . Subdweller 10 | . . 10 Best Kill Streak 4 | . 4 3 Combat Bots Only 3 | . 3 3 Max Kills in Single Turn 1 | . 1 1 Gunslinging . | . . . Exploded . | . . . Melee . | . . . Uniques/NPCs Destroyed . | . . . Combat | -11 -10 -10 -------- Run | Yrd Mat Sub Hostile Shots Fired 116 | . 56 60 Missed 35 | . 13 22 Hits 81 | . 43 38 Projectile 81 | . 43 38 Critical Strikes 1 | . . 1 Damage Taken 1226 | . 520 706 Core 259 | . 137 122 Absorbed by Shields . | . . . Core Remaining (%) 100 | 100 . . Volleys Fired 127 | . 54 73 Largest 2 | . 2 2 Hottest 80 | . 50 80 Shots Fired 248 | . 107 141 Gun 112 | . 82 30 Cannon 136 | . 25 111 Launcher . | . . . Special . | . . . Kinetic 227 | . 107 120 Thermal . | . . . Explosive . | . . . Electromagnetic 21 | . . 21 Robot Hit Streak 17 | . 12 17 Robot Miss Streak 4 | . 3 4 Penetration Max . | . . . Secondary Targets . | . . . Shots Hit Robots 144 | . 75 69 Core Hits 55 | . 32 23 Critical Kills 1 | . 1 . Critical Parts Destroyed . | . . . Critical Strikes 4 | . 2 2 Destroy 1 | . 1 . Blast 3 | . 1 2 Melee Attacks . | . . . Impact . | . . . Slashing . | . . . Piercing . | . . . Sneak Attacks . | . . . Combat Hostiles . | . . . Follow-up Attacks . | . . . Damage Inflicted 2244 | . 1031 1213 Guns 1070 | . 704 366 Cannons 1174 | . 327 847 Explosions . | . . . Melee . | . . . Ramming . | . . . Kinetic 1955 | . 1031 924 Thermal . | . . . Explosive . | . . . Electromagnetic 289 | . . 289 Impact . | . . . Slashing . | . . . Piercing . | . . . Highest Corruption . | . . . Average Corruption . | . . . Corruption Purged . | . . . Corruption Blocked . | . . . Overload Shots . | . . . Overflow Damage . | . . . Projectiles . | . . . Explosions . | . . . Melee . | . . . Knockbacks 14 | . 5 9 Impact . | . . . Kinetic 14 | . 5 9 Secondary . | . . . Self-Inflicted Damage . | . . . Shots . | . . . Rammed . | . . . Targets Rammed . | . . . Kicked . | . . . Crushed . | . . . Highest Temperature 12 | . 12 . Average Temperature 5 | . 5 . Received Heat Transfer 441 | . 279 162 Siege Activations . | . . . Martial Activations . | . . . Shielding Activations . | . . . Robots Disrupted . | . . . Combat Hostiles . | . . . Robots Corrupted . | . . . Combat Hostiles . | . . . Parts Fried . | . . . Impact Corruptions . | . . . Robots Melted . | . . . Combat Hostiles . | . . . Parts Melted . | . . . Heat Transferred . | . . . Parts Sabotaged . | . . . Parts Stolen . | . . . Parts Stripped . | . . . Power Chain Reactions . | . . . Alert | -11 -10 -10 ------- Run | Yrd Mat Sub Maximum Alert Level . | . . . Low Security (%) 100 | 100 100 . Level 1 . | . . . Level 2 . | . . . Level 3 . | . . . Level 4 . | . . . Level 5 . | . . . High Security . | . . . Max Security . | . . . Peak Influence 125 | . 125 . Initial . | . . . Average 43 | . 44 . Influence Increases 477 | . 407 70 Destroy 0b10 Robot/C 340 | . 280 60 Destroy 0b10 Robot/NC 25 | . 25 . Destroy Leader 78 | . 68 10 Successful Hack 4 | . 4 . Lose Combat Pursuer 30 | . 30 . Influence Decreases 477 | . 407 70 Time Decay 447 | . 387 60 Lost Part 30 | . 20 10 Squads Dispatched 3 | . 3 . Investigation . | . . . Extermination . | . . . Reinforcement 3 | . 3 . Assault . | . . . Garrison . | . . . Intercept . | . . . Searches Triggered . | . . . Construction Impeded . | . . . Haulers Reinforced . | . . . Active Scanning Responses . | . . . Cargo Convoy Interrupts . | . . . Stealth | -11 -10 -10 --------- Run | Yrd Mat Sub Distress Signals 2 | . 2 . Communications Jammed . | . . . Distress Signals . | . . . Times Spotted 36 | . 22 14 Peak Tracking Total 4 | . 4 3 Tactical Retreats 2 | . 2 . Traps | -11 -10 -10 ------- Run | Yrd Mat Sub Traps Triggered . | . . . Indirectly . | . . . Trap Hack Attempts . | . . . Triggered . | . . . Disarmed . | . . . Reprogrammed . | . . . Reused . | . . . Traps Extracted . | . . . Installed . | . . . Triggered . | . . . Machines | -11 -10 -10 ---------- Run | Yrd Mat Sub Machines Disabled . | . . . Max in Single Turn . | . . . Machines Repaired . | . . . Machines Dismantled . | . . . Machines Sabotaged . | . . . Overloaded Fab Kills . | . . . Hacking | -11 -10 -10 --------- Run | Yrd Mat Sub Machines Accessed 7 | . 5 2 Terminals 4 | . 4 . Fabricators . | . . . Repair Stations . | . . . Recycling Units 1 | . 1 . Scanalyzers . | . . . Garrison Access . | . . . Total Hacks 18 | . 15 3 Successful 9 | . 6 3 Failed 9 | . 9 . Catastrophic 3 | . 3 . Database Lockouts . | . . . Manual 8 | . 8 . Terminals 14 | . 14 . Fabricators . | . . . Repair Stations . | . . . Recycling Units 1 | . 1 . Scanalyzers . | . . . Garrison Access . | . . . Terminal Hacks 8 | . 5 3 Record 1 | . . 1 Robot Analysis 1 | . 1 . Open Door 1 | . . 1 Branch Access Points 1 | . 1 . Locate Traps 3 | . 3 . Release Object 1 | . . 1 Fabricator Hacks . | . . . Repair Station Hacks . | . . . Recycling Unit Hacks 1 | . 1 . Report Inventory 1 | . 1 . Scanalyzer . | . . . Garrison Access Hacks . | . . . Unauthorized Hacks . | . . . Terminals . | . . . Fabricators . | . . . Repair Stations . | . . . Recycling Units . | . . . Scanalyzers . | . . . Garrison Access . | . . . Data Cores Recovered . | . . . Used . | . . . Hacking Detections 4 | . 4 . Full Trace Events . | . . . Feedback Events . | . . . Feedback Blocked . | . . . Robot Schematics Acquired . | . . . Robots Built . | . . . Authchips . | . . . Time . | . . . Total Robot Build Rating . | . . . Part Schematics Acquired . | . . . Parts Built . | . . . Authchips . | . . . Time . | . . . Total Part Build Rating . | . . . Parts Repaired . | . . . Time . | . . . Parts Recycled . | . . . Recycled Matter . | . . . Retrieved Matter . | . . . Retrieved Components . | . . . Parts Scanalyzed . | . . . Part Schematics Acquired . | . . . Parts Damaged . | . . . Bothacking | -11 -10 -10 ------------ Run | Yrd Mat Sub Used RIF Installer . | . . . Robots Hacked . | . . . Non-combat . | . . . Combat . | . . . Robot Hacks Applied . | . . . Relay Couplers Released . | . . . Fabnet Peak Effective % . | . . . Robots Rewired . | . . . Allies Hacked . | . . . Hacks Repelled . | . . . Allies | -11 -10 -10 -------- Run | Yrd Mat Sub Total Allies . | . . . Largest Group . | . . . Highest-Rated Group . | . . . Highest-Rated Ally . | . . . Total Orders . | . . . Ally Attacks . | . . . Total Damage . | . . . Kills . | . . . Allies Corrupted . | . . . Allies Melted . | . . . Intel | -11 -10 -10 ------- Run | Yrd Mat Sub Active Infowar (turns) . | . . . Robot Analysis Total 1 | . 1 . Derelict Logs Recovered 1 | . . 1 Drone Launches . | . . . Drone Recoveries . | . . . Exploration | -11 -10 -10 ------------- Run | Yrd Mat Sub Turns Passed 3408 | 29 1097 2282 Spaces Moved 1741 | 39 535 1167 Core 101 | 39 29 33 Treads . | . . . Legs 1162 | . 506 656 Wheels 478 | . . 478 Hover . | . . . Flight . | . . . Fastest Speed 50 | 50 100 120 Average Speed 164 | 50 158 171 Slowest Speed 550 | 50 190 550 Overloaded Moves . | . . . Propulsion Burnouts . | . . . Robots Hopped . | . . . Potential Cave-ins . | . . . Cave-ins Triggered . | . . . Exploration Rate (%) 42 | 3 83 41 Regions Visited 2 Branch Regions 1 Pre-discovered Areas . | . . . Known Exits Taken . | . . . Unknown Exits Taken 2 | 1 1 . Scrap Searched 3 | . . 3 Spaces Dug 7 | . . 7 Terrain Destroyed 9 | . . 9 Melee . | . . . Projectile 9 | . . 9 AOE . | . . . Terrain Rammed . | . . . Walls Destroyed . | . . . Machines Disabled . | . . . Actions | -11 -10 -10 --------- Run | Yrd Mat Sub Total 2032 | 46 677 1309 Wait 106 | . 70 36 Move 1739 | 38 534 1167 Hop . | . . . Pick Up 24 | 5 9 10 Fast Attach 4 | 3 1 . Attach 11 | . 5 6 Detach . | . . . Swap 8 | . 1 7 Drop 13 | . 3 10 Fire 127 | . 54 73 Melee . | . . . Ram . | . . . Kick . | . . . Crush . | . . . Escape Stasis . | . . . Rewire . | . . . Trap . | . . . Miscellaneous . | . . . Route ------- -11/Scrapyard -10/Materials (discovered 4 exits: [*Mat] / *Min x2 / *Sub) -10/Subcaves History --------- Turn | Location | Event 11 | -11/Scrapyard | Discovered new exit (range 16) 30 | -11/Scrapyard | Entered Materials 316 | -10/Materials | Build established: Mutant 528 | -10/Materials | Core integrity fell below 50% 776 | -10/Materials | Discovered new exit (range 11) 859 | -10/Materials | Discovered new exit (range 16) 893 | -10/Materials | Discovered new exit (range 16) 969 | -10/Materials | Identified exit to Mines 1110 | -10/Materials | Discovered new exit (range 9) 1127 | -10/Materials | Entered Subcaves 1128 | -10/Subcaves | Approached by a straggling Scientist 1496 | -10/Subcaves | Learned location of 1 exit from Materials 1549 | -10/Subcaves | A swath of the cavern ceiling suddenly collapsed 1712 | -10/Subcaves | Core integrity fell below 20% 2513 | -10/Subcaves | Shifting Twisted Machinery released Battle Rifle 2815 | -10/Subcaves | A swath of the cavern ceiling suddenly collapsed 3311 | -10/Subcaves | Found SUBCON Basin 3406 | -10/Subcaves | Disturbed a concealed Subdweller 3409 | -10/Subcaves | Destroyed by GD-JBL(R) with Subdweller Laser Last Messages --------------- 03302_ Connecting with SUBCON Basin Controls... 03304_ Dropped Ion Engine. 03304_ Dropped Sub. Power Source. 03305_ Dropped Lgt. Nuclear Core. 03305_ Dropped Sub. Optics. 03306_ Discarded Targeting Computer. 03307_ Dropped EM Pulse Gun. 03309_ Dropped Lgt. Cannon. 03310_ Dropped Sub. Machine Gun. 03310_ Dropped Battle Cannon. 03311_ Dropped Datajack. 03311_ Acquired SUBCON Basin. 03398_ Searching scrap... 03398_ Found Sub. Laser. 03398_ Found Mak. Hacking Suite. 03398_ Found 40 Matter. 03399_ Acquired 40 matter. 03400_ Discarded Hacking Suite. 03406_ GD-JBL(R) angrily emerges from the Twisted Machinery. 03407_ Aluminum Leg destroyed. Map ----- +----------------------------------------------------+ | ?????????????????????????????????????????????????? | | ?????????????????????????????????????????????????? | | ?????????????????????????????????????????????????? | | ?????????????????????????????????????????????????? | | ?????????????????????????????????????????????????? | | ?????????????????????????????????????????????????? | | ?????????????????????????????????????????????????? | | ?????????????????????????????????????????????????? | | ?????????????????????????????????????????????????? | | ?????????????????????????????????????????????????? | | ?????????????????????????????????????????????????? | | ?????????????????????????????????????????????????? | | ?????????????????????????????????????????????????? | | ?????????????????????????????????????????????????? | | ???????????????????????????????????????########??? | | ???????????????????????????????????????#""""""#??? | | ???????????????????????????????????????#"X""""#??? | | ???????????????????????????????????????#"* *]]#??? | | ???????????????????????????????????????#"!*[[ #??? | | ???????????????????????????????????????#""""/"#??? | | ???????????????????????????????????????##### ##??? | | ??????????????????????#######????????????#"" "#??? | | ???????????? ????????# # #???????????## X#??? | | ???????????? ??????# [ #??????????## ###?? | | ??????????? % ##??###R<##??#####?### #### ### | | ??????????? #?# @###?## ### ## ## # | | ??????????# ## # #?# %## ### | | ???????????? < < #?### ## | | ???????????? # ###?## ### | | ???????????????????### #### ## ## | | ?????????????????????## ### | | ??????????????????????### ###### | | ????????????????????????# # ## ##???# | | ?????????????????????#### ####### ###?## | | ????????????????????## # ### ##?# | | ????????????????????# #?## | | ????????????????????# #??## | | ????????????????????# ### # # #???? | | ????????????????????########???###############???? | | ?????????????????????????????????????????????????? | | ?????????????????????????????????????????????????? | | ?????????????????????????????????????????????????? | | ?????????????????????????????????????????????????? | | ?????????????????????????????????????????????????? | | ?????????????????????????????????????????????????? | | ?????????????????????????????????????????????????? | | ??????????????????????????????????????????##?????? | | ??????????????????????????????????????????# #????? | | ???????????????????????????????????????????# #???? | | ????????????????????????????????????????????# #??? | +----------------------------------------------------+ Best States ------------- Heat Dissipation 25 Energy Generation 10 Energy Capacity 250 Matter Stores 300 Matter Capacity 300 Sight Range 16 Terrain Scan Density 10 Evasion (%) 55 Targeting Accuracy 5 Offensive Hacking 10 Item Schematics ----------------- None Robot Schematics ------------------ None Fabricated ------------ Nothing Repaired ---------- Nothing Alien Tech Used ----------------- None Achievements -------------- None Challenges ------------ None Game ------ Seed ArmoredSmartCanceller Manual? 0 Play Time 00:18:14 Cumulative 185.0 hours Start 2025.09.26 @ 18:39:59 End 2025.09.26 @ 19:14:16 Sessions 1 Manual Loads 0 Difficulty Rogue Special Mode None Game No. 291 Rogue 288 Adventurer 3 Explorer 0 Win Type - Total 1 Types 1/0/0/0/0/0/0/0/0/0 Lore% 63 Gallery% 59 Achievement% 46 Wizard Run 0 Options --------- Layout 0 ASCII 0 Keyboard 0 Movement Mouse Keybinds 0 Fullscreen 2 Font 18/SmallcapsGlow Map View 76x50 Zoom Use 0% Tactical HUD 1 Map Filters NONE Filters NONE Steam 1 RUN: 6553f111-43de-453f-b584-d2c9e9ba6504